[Event "Late-Titled-Tuesday-Blitz-March-12-2024"]
[Site "Chess.com"]
[Date "2024.03.12"]
[Round "2"]
[White "karinachess1"]
[Black "NovakRatko"]
[Result "1-0"]
[WhiteElo "2604"]
[BlackElo "2407"]
[TimeControl "180+1"]
[EndTime "14:15:46 PDT"]
[Termination "karinachess1 won by resignation"]

1. d4 {[%clk 0:03:00.9]} 1... d5 {[%clk 0:02:54.9]} 2. c4 {[%clk 0:03:01]} 2...
c5 {[%clk 0:02:54.3]} 3. cxd5 {[%clk 0:02:45.3]} 3... Qxd5 {[%clk 0:02:55.2]} 4.
e3 {[%clk 0:02:45.6]} 4... cxd4 {[%clk 0:02:55.2]} 5. exd4 {[%clk 0:02:46.5]}
5... e5 {[%clk 0:02:54.3]} 6. Nc3 {[%clk 0:02:31.6]} 6... Qxd4 {[%clk
0:02:53.2]} 7. Qc2 {[%clk 0:02:16.7]} 7... Bb4 {[%clk 0:02:43.1]} 8. Nf3 {[%clk
0:02:11.7]} 8... Qc5 {[%clk 0:02:36.6]} 9. Be3 {[%clk 0:02:10.2]} 9... Qa5
{[%clk 0:02:35.2]} 10. Bc4 {[%clk 0:01:58]} 10... Nf6 {[%clk 0:02:32.5]} 11. O-O
{[%clk 0:01:49.1]} 11... O-O {[%clk 0:02:27.6]} 12. Ng5 {[%clk 0:01:49.3]} 12...
Bxc3 {[%clk 0:02:13]} 13. bxc3 {[%clk 0:01:45.7]} 13... Nc6 {[%clk 0:02:09.7]}
14. Rfd1 {[%clk 0:01:33.1]} 14... Bg4 {[%clk 0:01:59.5]} 15. Rd5 {[%clk
0:01:18.4]} 15... Qc7 {[%clk 0:01:45.7]} 16. Bc5 {[%clk 0:01:16.3]} 16... h6
{[%clk 0:01:42.6]} 17. Bxf8 {[%clk 0:01:13.8]} 17... Rxf8 {[%clk 0:01:37.6]} 18.
Nxf7 {[%clk 0:00:30.6]} 18... Nxd5 {[%clk 0:01:28.5]} 19. Bxd5 {[%clk
0:00:17.5]} 19... Rxf7 {[%clk 0:01:22.4]} 20. Qg6 {[%clk 0:00:17.6]} 20... Bd7
{[%clk 0:01:13.1]} 21. Qxf7+ {[%clk 0:00:17.1]} 21... Kh7 {[%clk 0:00:55.1]} 22.
Be4+ {[%clk 0:00:17]} 1-0

[Event "Late-Titled-Tuesday-Blitz-March-12-2024"]
[Site "Chess.com"]
[Date "2024.03.12"]
[Round "2"]
[White "mbchess97"]
[Black "LeoWin2012"]
[Result "0-1"]
[WhiteElo "2476"]
[BlackElo "2197"]
[TimeControl "180+1"]
[EndTime "14:15:58 PDT"]
[Termination "LeoWin2012 won by resignation"]

1. c4 {[%clk 0:03:00.9]} 1... e6 {[%clk 0:02:57.5]} 2. g3 {[%clk 0:03:01.1]}
2... Nf6 {[%clk 0:02:56]} 3. Bg2 {[%clk 0:03:01.3]} 3... Be7 {[%clk 0:02:55.3]}
4. Nf3 {[%clk 0:02:56.5]} 4... O-O {[%clk 0:02:55.1]} 5. O-O {[%clk 0:02:56.2]}
5... d5 {[%clk 0:02:55.3]} 6. b3 {[%clk 0:02:54.4]} 6... b6 {[%clk 0:02:54.5]}
7. d4 {[%clk 0:02:46.8]} 7... Bb7 {[%clk 0:02:53.3]} 8. cxd5 {[%clk 0:02:45.7]}
8... Nxd5 {[%clk 0:02:51.8]} 9. Re1 {[%clk 0:02:39.7]} 9... Nd7 {[%clk
0:02:51.2]} 10. e4 {[%clk 0:02:36.5]} 10... N5f6 {[%clk 0:02:50.9]} 11. Qc2
{[%clk 0:02:26.2]} 11... c5 {[%clk 0:02:50]} 12. e5 {[%clk 0:02:05.2]} 12... Nd5
{[%clk 0:02:46.3]} 13. Nc3 {[%clk 0:01:59.5]} 13... Nxc3 {[%clk 0:02:43.5]} 14.
Qxc3 {[%clk 0:01:57.6]} 14... cxd4 {[%clk 0:02:43.6]} 15. Nxd4 {[%clk
0:01:52.4]} 15... Bxg2 {[%clk 0:02:39.3]} 16. Kxg2 {[%clk 0:01:52.4]} 16... Nc5
{[%clk 0:02:33.8]} 17. Be3 {[%clk 0:01:10]} 17... Qd5+ {[%clk 0:02:28.7]} 18.
Nf3 {[%clk 0:01:09.9]} 18... Rac8 {[%clk 0:02:20]} 19. Rad1 {[%clk 0:01:07.8]}
19... Qb7 {[%clk 0:02:20]} 20. Qb2 {[%clk 0:00:59.8]} 20... Ne4 {[%clk
0:02:16.2]} 21. h4 {[%clk 0:00:53]} 21... Bb4 {[%clk 0:02:12]} 22. Re2 {[%clk
0:00:48.1]} 22... Nc3 {[%clk 0:02:11]} 23. Red2 {[%clk 0:00:37.8]} 23... Nxd1
{[%clk 0:02:10.2]} 24. Rxd1 {[%clk 0:00:38.2]} 24... Rfd8 {[%clk 0:02:09.7]} 25.
Rxd8+ {[%clk 0:00:36.8]} 25... Rxd8 {[%clk 0:02:10.6]} 26. Qe2 {[%clk
0:00:32.7]} 26... Bc5 {[%clk 0:02:09.8]} 27. Bf4 {[%clk 0:00:30.1]} 27... h6
{[%clk 0:02:07.5]} 28. Kh3 {[%clk 0:00:30.2]} 28... Qd5 {[%clk 0:02:04.4]} 29.
g4 {[%clk 0:00:30]} 29... Qd3 {[%clk 0:02:03.7]} 30. Qxd3 {[%clk 0:00:27.6]}
30... Rxd3 {[%clk 0:02:04.6]} 31. Kg2 {[%clk 0:00:27.9]} 31... Rc3 {[%clk
0:02:04.1]} 32. Nd2 {[%clk 0:00:23.2]} 32... Rc2 {[%clk 0:02:03.8]} 33. a4
{[%clk 0:00:22.7]} 33... Bd4 {[%clk 0:01:57]} 34. Kf3 {[%clk 0:00:21]} 34...
Bxe5 {[%clk 0:01:55.1]} 35. Bxe5 {[%clk 0:00:15.6]} 35... Rxd2 {[%clk 0:01:55]}
36. Bb8 {[%clk 0:00:15.1]} 36... Rd3+ {[%clk 0:01:54.7]} 37. Ke4 {[%clk
0:00:14.6]} 37... Rxb3 {[%clk 0:01:55.6]} 38. Bxa7 {[%clk 0:00:14.4]} 38... Rb4+
{[%clk 0:01:55.5]} 39. Kf3 {[%clk 0:00:14.6]} 39... Rxa4 {[%clk 0:01:54.9]} 40.
Bxb6 {[%clk 0:00:15]} 40... g6 {[%clk 0:01:54.7]} 41. Be3 {[%clk 0:00:15]} 41...
h5 {[%clk 0:01:54.8]} 42. gxh5 {[%clk 0:00:13.4]} 42... gxh5 {[%clk 0:01:55.7]}
43. Kg3 {[%clk 0:00:13.6]} 43... Kg7 {[%clk 0:01:55.7]} 44. Bg5 {[%clk
0:00:13.3]} 44... Kg6 {[%clk 0:01:56.2]} 45. Be3 {[%clk 0:00:13.5]} 45... Kf5
{[%clk 0:01:56.6]} 46. Bg5 {[%clk 0:00:12.7]} 46... Rg4+ {[%clk 0:01:55.6]} 47.
Kh3 {[%clk 0:00:12.6]} 47... Ke4 {[%clk 0:01:51.9]} 48. Bf6 {[%clk 0:00:10.7]}
48... Kf3 {[%clk 0:01:52]} 49. Bd4 {[%clk 0:00:10.6]} 49... Rxd4 {[%clk
0:01:51.6]} 0-1

[Event "Late-Titled-Tuesday-Blitz-March-12-2024"]
[Site "Chess.com"]
[Date "2024.03.12"]
[Round "2"]
[White "RantomOpening"]
[Black "Levanzovsky"]
[Result "1-0"]
[WhiteElo "2574"]
[BlackElo "2384"]
[TimeControl "180+1"]
[EndTime "14:16:00 PDT"]
[Termination "RantomOpening won by resignation"]

1. e4 {[%clk 0:02:59.6]} 1... e5 {[%clk 0:03:00.2]} 2. Nf3 {[%clk 0:02:54.7]}
2... Nc6 {[%clk 0:03:00.6]} 3. c3 {[%clk 0:02:54.5]} 3... Nf6 {[%clk 0:02:49.5]}
4. d4 {[%clk 0:02:53.1]} 4... Nxe4 {[%clk 0:02:45.6]} 5. Bd3 {[%clk 0:02:50.8]}
5... d5 {[%clk 0:02:45.4]} 6. Nxe5 {[%clk 0:02:50.9]} 6... Nxe5 {[%clk 0:02:45]}
7. dxe5 {[%clk 0:02:50.7]} 7... Nc5 {[%clk 0:02:40.7]} 8. Bc2 {[%clk 0:02:47.6]}
8... Ne6 {[%clk 0:02:31.4]} 9. O-O {[%clk 0:02:45.3]} 9... Be7 {[%clk
0:02:23.7]} 10. f4 {[%clk 0:02:39.8]} 10... f5 {[%clk 0:02:22.4]} 11. exf6
{[%clk 0:02:37.3]} 11... Bxf6 {[%clk 0:02:21]} 12. f5 {[%clk 0:02:31.4]} 12...
Nc5 {[%clk 0:02:18.3]} 13. Re1+ {[%clk 0:02:30.9]} 13... Kf8 {[%clk 0:02:16.2]}
14. Be3 {[%clk 0:02:15.8]} 14... Qd6 {[%clk 0:02:08]} 15. Nd2 {[%clk 0:02:13.1]}
15... Bd7 {[%clk 0:02:08]} 16. Nf3 {[%clk 0:02:03.6]} 16... Re8 {[%clk
0:02:08.1]} 17. Qd2 {[%clk 0:02:00.7]} 17... Ne4 {[%clk 0:02:06.6]} 18. Bxe4
{[%clk 0:01:58.3]} 18... dxe4 {[%clk 0:02:06.8]} 19. Nd4 {[%clk 0:01:56.4]}
19... Kf7 {[%clk 0:01:57.2]} 20. Qc2 {[%clk 0:01:43.4]} 20... c5 {[%clk
0:01:54.3]} 21. Qb3+ {[%clk 0:01:41.3]} 21... Ke7 {[%clk 0:01:51]} 22. Nb5
{[%clk 0:01:29.3]} 22... Qb6 {[%clk 0:01:43.3]} 23. a4 {[%clk 0:01:20.8]} 23...
a6 {[%clk 0:01:19.4]} 24. Qd5 {[%clk 0:01:20.2]} 24... Rc8 {[%clk 0:01:13]} 25.
Na3 {[%clk 0:01:14.4]} 25... Qc6 {[%clk 0:01:08.6]} 26. Qxc6 {[%clk 0:01:09.4]}
26... Rxc6 {[%clk 0:01:06.6]} 27. Rf1 {[%clk 0:01:05.1]} 27... Rd8 {[%clk
0:01:02.2]} 28. Nc4 {[%clk 0:01:04.8]} 28... b5 {[%clk 0:01:01.1]} 29. Na5
{[%clk 0:01:02.5]} 29... Rc7 {[%clk 0:01:00.2]} 30. Bf4 {[%clk 0:01:02.8]} 30...
Ra7 {[%clk 0:00:57.7]} 31. axb5 {[%clk 0:01:01.6]} 31... Bxb5 {[%clk 0:00:57.6]}
32. Rfe1 {[%clk 0:00:58.8]} 32... Bd3 {[%clk 0:00:57.9]} 33. Nc6+ {[%clk
0:00:58.8]} 33... Kd7 {[%clk 0:00:58.2]} 34. Nxa7 {[%clk 0:00:57.9]} 34... Ra8
{[%clk 0:00:58.8]} 35. Rad1 {[%clk 0:00:56.2]} 35... Rxa7 {[%clk 0:00:42.7]} 36.
Rxe4 {[%clk 0:00:55.6]} 36... Bd4+ {[%clk 0:00:43.4]} 37. Rxd4+ {[%clk 0:00:56]}
37... cxd4 {[%clk 0:00:44.3]} 38. Rxd3 {[%clk 0:00:56.4]} 1-0

[Event "Late-Titled-Tuesday-Blitz-March-12-2024"]
[Site "Chess.com"]
[Date "2024.03.12"]
[Round "2"]
[White "K_A_S_T_O_R"]
[Black "SergioMoralesG"]
[Result "1-0"]
[WhiteElo "2858"]
[BlackElo "2486"]
[TimeControl "180+1"]
[EndTime "14:16:01 PDT"]
[Termination "K_A_S_T_O_R won on time"]

1. e4 {[%clk 0:03:00.9]} 1... c5 {[%clk 0:02:59]} 2. Nf3 {[%clk 0:03:00.9]} 2...
e6 {[%clk 0:02:59.6]} 3. d4 {[%clk 0:03:01.5]} 3... cxd4 {[%clk 0:03:00.5]} 4.
Nxd4 {[%clk 0:03:02.1]} 4... Nc6 {[%clk 0:03:01.2]} 5. Nb5 {[%clk 0:03:01.9]}
5... d6 {[%clk 0:03:00.7]} 6. c4 {[%clk 0:03:02.4]} 6... Be7 {[%clk 0:02:56]} 7.
Bf4 {[%clk 0:02:59.8]} 7... e5 {[%clk 0:02:43.5]} 8. Be3 {[%clk 0:02:59.8]} 8...
Nf6 {[%clk 0:02:36.9]} 9. N5c3 {[%clk 0:02:54.6]} 9... O-O {[%clk 0:02:34.8]}
10. Be2 {[%clk 0:02:55.1]} 10... a6 {[%clk 0:02:29.5]} 11. O-O {[%clk
0:02:54.3]} 11... Be6 {[%clk 0:02:22.6]} 12. Na3 {[%clk 0:02:52.6]} 12... Rc8
{[%clk 0:02:08.5]} 13. Qd2 {[%clk 0:02:52.7]} 13... Na5 {[%clk 0:01:58.2]} 14.
b3 {[%clk 0:02:47.2]} 14... b5 {[%clk 0:01:47.1]} 15. Nd5 {[%clk 0:02:30.7]}
15... Bxd5 {[%clk 0:01:30.2]} 16. exd5 {[%clk 0:02:28.8]} 16... bxc4 {[%clk
0:01:26.5]} 17. b4 {[%clk 0:02:11.2]} 17... Nb7 {[%clk 0:00:55.9]} 18. Nxc4
{[%clk 0:02:08.2]} 18... Ne4 {[%clk 0:00:55.5]} 19. Qd3 {[%clk 0:02:01.9]} 19...
f5 {[%clk 0:00:55.8]} 20. f3 {[%clk 0:02:02]} 20... Nf6 {[%clk 0:00:46.2]} 21.
Nb6 {[%clk 0:02:00.5]} 21... e4 {[%clk 0:00:40.6]} 22. fxe4 {[%clk 0:01:51.8]}
22... fxe4 {[%clk 0:00:39.1]} 23. Qxa6 {[%clk 0:01:50.3]} 23... Rc2 {[%clk
0:00:33.8]} 24. Rac1 {[%clk 0:01:43.3]} 24... Rxe2 {[%clk 0:00:17.3]} 25. Qxe2
{[%clk 0:01:42.1]} 25... Qe8 {[%clk 0:00:16.4]} 26. a4 {[%clk 0:01:39.9]} 26...
Bd8 {[%clk 0:00:12.2]} 27. Qc4 {[%clk 0:01:34.4]} 27... Ng4 {[%clk 0:00:09.1]}
28. Bd4 {[%clk 0:01:32.5]} 28... Rxf1+ {[%clk 0:00:06.8]} 29. Rxf1 {[%clk
0:01:31.7]} 29... Qh5 {[%clk 0:00:07.7]} 30. h3 {[%clk 0:01:31.9]} 30... Nf6
{[%clk 0:00:06.8]} 31. a5 {[%clk 0:01:29.8]} 31... Bxb6 {[%clk 0:00:03.9]} 32.
Bxb6 {[%clk 0:01:29.7]} 32... Qxd5 {[%clk 0:00:02.1]} 33. Qc8+ {[%clk
0:01:21.8]} 33... Kf7 {[%clk 0:00:01.5]} 34. a6 {[%clk 0:01:22.3]} 1-0

[Event "Late-Titled-Tuesday-Blitz-March-12-2024"]
[Site "Chess.com"]
[Date "2024.03.12"]
[Round "2"]
[White "ChessFanNM"]
[Black "Bugcrusher"]
[Result "0-1"]
[WhiteElo "2276"]
[BlackElo "2534"]
[TimeControl "180+1"]
[EndTime "14:16:16 PDT"]
[Termination "Bugcrusher won by resignation"]

1. e4 {[%clk 0:03:00]} 1... c6 {[%clk 0:02:58.9]} 2. d4 {[%clk 0:02:58.6]} 2...
d5 {[%clk 0:02:59.8]} 3. exd5 {[%clk 0:02:59.1]} 3... cxd5 {[%clk 0:03:00]} 4.
Nf3 {[%clk 0:02:59.7]} 4... Nc6 {[%clk 0:02:59]} 5. c4 {[%clk 0:02:59.3]} 5...
Nf6 {[%clk 0:02:58.6]} 6. cxd5 {[%clk 0:02:44.6]} 6... Nxd5 {[%clk 0:02:58.2]}
7. Nc3 {[%clk 0:02:40.8]} 7... a6 {[%clk 0:02:34.1]} 8. Bc4 {[%clk 0:02:18.1]}
8... Be6 {[%clk 0:02:33.5]} 9. Ng5 {[%clk 0:01:59.8]} 9... Nxc3 {[%clk
0:02:32.2]} 10. Nxe6 {[%clk 0:01:59.7]} 10... Nxd1 {[%clk 0:02:28.2]} 11. Nxd8
{[%clk 0:01:59.1]} 11... Rxd8 {[%clk 0:02:28.3]} 12. d5 {[%clk 0:01:36.4]} 12...
Ne5 {[%clk 0:02:12.8]} 13. Bb3 {[%clk 0:01:32.4]} 13... Nxb2 {[%clk 0:02:08.2]}
14. Bxb2 {[%clk 0:01:28.2]} 14... Nd3+ {[%clk 0:02:07.7]} 15. Kd2 {[%clk
0:01:21.9]} 15... Nxb2 {[%clk 0:02:08.6]} 16. Kc2 {[%clk 0:01:22]} 16... g6
{[%clk 0:02:04.7]} 17. Rab1 {[%clk 0:01:09.3]} 17... Bg7 {[%clk 0:02:03.9]} 18.
h4 {[%clk 0:01:04.6]} 18... O-O {[%clk 0:02:02.7]} 19. Rxb2 {[%clk 0:00:59.3]}
19... Bxb2 {[%clk 0:02:01.1]} 20. Kxb2 {[%clk 0:00:59.3]} 20... e6 {[%clk
0:02:01.6]} 21. dxe6 {[%clk 0:00:58]} 21... fxe6 {[%clk 0:02:00.6]} 22. Bxe6+
{[%clk 0:00:57.9]} 22... Kg7 {[%clk 0:02:01.1]} 23. f3 {[%clk 0:00:50.1]} 23...
Rd2+ {[%clk 0:02:00.4]} 24. Kb3 {[%clk 0:00:50.2]} 24... Rxg2 {[%clk 0:02:00.6]}
25. Bd5 {[%clk 0:00:50]} 25... b5 {[%clk 0:01:58.9]} 26. h5 {[%clk 0:00:49.9]}
26... Rd8 {[%clk 0:01:53.1]} 27. Be4 {[%clk 0:00:46.9]} 27... Rdd2 {[%clk
0:01:50.1]} 28. hxg6 {[%clk 0:00:40.7]} 28... hxg6 {[%clk 0:01:49.5]} 29. Rc1
{[%clk 0:00:36.9]} 29... Rb2+ {[%clk 0:01:49]} 30. Kc3 {[%clk 0:00:35.5]} 30...
Rxa2 {[%clk 0:01:49]} 31. Kd4 {[%clk 0:00:34.8]} 31... Rgd2+ {[%clk 0:01:46.6]}
32. Ke5 {[%clk 0:00:34.6]} 32... Rd7 {[%clk 0:01:41.6]} 33. Rc6 {[%clk
0:00:24.8]} 33... Re7+ {[%clk 0:01:41.2]} 34. Kf4 {[%clk 0:00:24.4]} 34... Rxe4+
{[%clk 0:01:37.6]} 35. fxe4 {[%clk 0:00:22.9]} 35... b4 {[%clk 0:01:37.3]} 36.
Rb6 {[%clk 0:00:21.5]} 36... a5 {[%clk 0:01:37.6]} 37. e5 {[%clk 0:00:20.5]}
37... Kf7 {[%clk 0:01:37.1]} 38. Rf6+ {[%clk 0:00:19.9]} 38... Ke7 {[%clk
0:01:34.9]} 39. Rxg6 {[%clk 0:00:19.9]} 39... b3 {[%clk 0:01:34.5]} 40. Rb6
{[%clk 0:00:19.1]} 40... a4 {[%clk 0:01:34.7]} 41. Kf5 {[%clk 0:00:19.4]} 41...
Rf2+ {[%clk 0:01:34.6]} 42. Ke4 {[%clk 0:00:19.6]} 42... b2 {[%clk 0:01:34.9]}
43. Kd5 {[%clk 0:00:19.3]} 43... Rd2+ {[%clk 0:01:34.4]} 44. Ke4 {[%clk
0:00:19.4]} 44... a3 {[%clk 0:01:35.3]} 45. Rb7+ {[%clk 0:00:17.2]} 45... Kd8
{[%clk 0:01:34.6]} 46. Kf5 {[%clk 0:00:16.8]} 46... a2 {[%clk 0:01:33.6]} 47.
Ke6 {[%clk 0:00:14.7]} 47... b1=Q {[%clk 0:01:31.3]} 0-1

[Event "Late-Titled-Tuesday-Blitz-March-12-2024"]
[Site "Chess.com"]
[Date "2024.03.12"]
[Round "2"]
[White "Joachim100x"]
[Black "Svet_1502"]
[Result "1-0"]
[WhiteElo "2507"]
[BlackElo "2214"]
[TimeControl "180+1"]
[EndTime "14:16:18 PDT"]
[Termination "Joachim100x won by resignation"]

1. Nc3 {[%clk 0:03:00.9]} 1... d5 {[%clk 0:02:55.5]} 2. d4 {[%clk 0:03:00.6]}
2... Nf6 {[%clk 0:02:54.1]} 3. Bg5 {[%clk 0:03:00.5]} 3... e6 {[%clk 0:02:48.8]}
4. e4 {[%clk 0:02:59.8]} 4... dxe4 {[%clk 0:02:48.5]} 5. Nxe4 {[%clk 0:02:59]}
5... Be7 {[%clk 0:02:47.5]} 6. Bxf6 {[%clk 0:02:59]} 6... Bxf6 {[%clk
0:02:47.7]} 7. Nf3 {[%clk 0:02:59.9]} 7... O-O {[%clk 0:02:47.4]} 8. Qd2 {[%clk
0:02:59.7]} 8... b6 {[%clk 0:02:47.4]} 9. O-O-O {[%clk 0:02:58.5]} 9... Bb7
{[%clk 0:02:47.1]} 10. Qf4 {[%clk 0:02:58.7]} 10... Bxe4 {[%clk 0:02:36.9]} 11.
Qxe4 {[%clk 0:02:58.4]} 11... Qd5 {[%clk 0:02:37.2]} 12. Bd3 {[%clk 0:02:56]}
12... g6 {[%clk 0:02:28]} 13. Kb1 {[%clk 0:02:45.9]} 13... Nc6 {[%clk
0:02:14.3]} 14. c3 {[%clk 0:02:44.1]} 14... Na5 {[%clk 0:01:54.2]} 15. h4 {[%clk
0:02:40.6]} 15... Qxe4 {[%clk 0:01:48.5]} 16. Bxe4 {[%clk 0:02:40.5]} 16... Rac8
{[%clk 0:01:42.8]} 17. h5 {[%clk 0:02:40.7]} 17... c5 {[%clk 0:01:39.5]} 18.
hxg6 {[%clk 0:02:40.9]} 18... hxg6 {[%clk 0:01:38.7]} 19. d5 {[%clk 0:02:41]}
19... exd5 {[%clk 0:01:37.3]} 20. Bxd5 {[%clk 0:02:40.3]} 20... Rfd8 {[%clk
0:01:31.5]} 21. g4 {[%clk 0:02:38.3]} 21... Kg7 {[%clk 0:01:21.1]} 22. g5 {[%clk
0:02:37.1]} 22... Be7 {[%clk 0:01:21.2]} 23. Rhe1 {[%clk 0:02:36.3]} 23... Bd6
{[%clk 0:01:16.3]} 24. Ne5 {[%clk 0:02:26.8]} 24... Bxe5 {[%clk 0:01:12.6]} 25.
Rxe5 {[%clk 0:02:26.7]} 25... Nc6 {[%clk 0:01:08.4]} 26. Re2 {[%clk 0:02:24.1]}
26... Rd6 {[%clk 0:00:59.5]} 27. c4 {[%clk 0:02:16.6]} 27... Rcd8 {[%clk
0:00:51.6]} 28. a3 {[%clk 0:02:16.1]} 28... b5 {[%clk 0:00:51]} 29. Rc1 {[%clk
0:02:06.3]} 29... bxc4 {[%clk 0:00:37]} 30. Bxc6 {[%clk 0:02:05.2]} 30... Rxc6
{[%clk 0:00:36.8]} 31. Rxc4 {[%clk 0:02:05.8]} 31... Rd4 {[%clk 0:00:36.5]} 32.
Rec2 {[%clk 0:02:00.6]} 32... Rd5 {[%clk 0:00:31.6]} 33. f4 {[%clk 0:02:00.4]}
33... a5 {[%clk 0:00:28.5]} 34. Ka2 {[%clk 0:02:00]} 34... Kf8 {[%clk 0:00:20]}
35. Kb3 {[%clk 0:01:59.7]} 35... Ke7 {[%clk 0:00:19.8]} 36. Ka4 {[%clk
0:01:59.8]} 36... Rb6 {[%clk 0:00:18.3]} 37. b3 {[%clk 0:01:58.9]} 37... Rd4
{[%clk 0:00:16.7]} 38. Rxd4 {[%clk 0:01:54.9]} 38... cxd4 {[%clk 0:00:17.3]} 39.
Rd2 {[%clk 0:01:55.5]} 39... Rd6 {[%clk 0:00:17.2]} 40. Kxa5 {[%clk 0:01:54.8]}
40... Ke6 {[%clk 0:00:17.7]} 41. b4 {[%clk 0:01:52.6]} 41... Kf5 {[%clk
0:00:18]} 42. b5 {[%clk 0:01:53.2]} 42... Kxf4 {[%clk 0:00:18]} 43. b6 {[%clk
0:01:52.6]} 43... Ke3 {[%clk 0:00:17.4]} 44. b7 {[%clk 0:01:44.8]} 44... Rd8
{[%clk 0:00:17.3]} 45. Rb2 {[%clk 0:01:44.4]} 45... d3 {[%clk 0:00:16.3]} 46.
Kb6 {[%clk 0:01:44.3]} 46... d2 {[%clk 0:00:14.9]} 47. Rxd2 {[%clk 0:01:42.9]}
47... Kxd2 {[%clk 0:00:15.8]} 48. Kc7 {[%clk 0:01:43.2]} 48... Rf8 {[%clk
0:00:15.9]} 49. b8=Q {[%clk 0:01:42.7]} 49... Rxb8 {[%clk 0:00:16.3]} 50. Kxb8
{[%clk 0:01:42.9]} 50... Kc3 {[%clk 0:00:17.2]} 51. Kc7 {[%clk 0:01:42.9]} 51...
Kb3 {[%clk 0:00:17.5]} 52. Kd6 {[%clk 0:01:43]} 52... Kxa3 {[%clk 0:00:17]} 53.
Ke7 {[%clk 0:01:43.1]} 53... f5 {[%clk 0:00:17.3]} 54. gxf6 {[%clk 0:01:43.4]}
54... g5 {[%clk 0:00:18.2]} 55. f7 {[%clk 0:01:43.7]} 55... g4 {[%clk
0:00:19.1]} 56. f8=Q {[%clk 0:01:43.5]} 1-0

[Event "Late-Titled-Tuesday-Blitz-March-12-2024"]
[Site "Chess.com"]
[Date "2024.03.12"]
[Round "2"]
[White "Blitzstream"]
[Black "Yushko_Olga"]
[Result "1-0"]
[WhiteElo "2730"]
[BlackElo "2182"]
[TimeControl "180+1"]
[EndTime "14:16:20 PDT"]
[Termination "Blitzstream won by checkmate"]

1. d4 {[%clk 0:03:00.9]} 1... e6 {[%clk 0:02:58.9]} 2. e4 {[%clk 0:03:00.7]}
2... d5 {[%clk 0:02:58.9]} 3. Nd2 {[%clk 0:03:01.3]} 3... Nf6 {[%clk 0:02:58.8]}
4. e5 {[%clk 0:03:01.4]} 4... Nfd7 {[%clk 0:02:58.1]} 5. Ngf3 {[%clk 0:03:02.3]}
5... c5 {[%clk 0:02:58.3]} 6. c3 {[%clk 0:03:02.9]} 6... Nc6 {[%clk 0:02:58.7]}
7. Bd3 {[%clk 0:03:03.3]} 7... Qb6 {[%clk 0:02:58.8]} 8. O-O {[%clk 0:03:03.4]}
8... cxd4 {[%clk 0:02:59.1]} 9. cxd4 {[%clk 0:03:04.3]} 9... f6 {[%clk
0:02:57.7]} 10. exf6 {[%clk 0:03:02.6]} 10... Nxf6 {[%clk 0:02:57.8]} 11. Re1
{[%clk 0:03:02.3]} 11... Be7 {[%clk 0:02:57]} 12. Nf1 {[%clk 0:03:02.2]} 12...
Bd7 {[%clk 0:02:56]} 13. Bg5 {[%clk 0:02:55.1]} 13... O-O {[%clk 0:02:50.4]} 14.
Ng3 {[%clk 0:02:29]} 14... Rac8 {[%clk 0:02:43.5]} 15. a3 {[%clk 0:02:26.6]}
15... Kh8 {[%clk 0:02:39.5]} 16. b4 {[%clk 0:02:04.1]} 16... Bd6 {[%clk
0:02:35.1]} 17. Bc2 {[%clk 0:01:56]} 17... Ne7 {[%clk 0:02:21.8]} 18. Rc1 {[%clk
0:01:54.2]} 18... Rc4 {[%clk 0:02:14.3]} 19. Qd3 {[%clk 0:01:45.9]} 19... Ng6
{[%clk 0:02:11.2]} 20. Ne5 {[%clk 0:01:40.3]} 20... Bxe5 {[%clk 0:02:01]} 21.
dxe5 {[%clk 0:01:40.2]} 21... Ne4 {[%clk 0:01:57.6]} 22. Be3 {[%clk 0:01:29.4]}
22... d4 {[%clk 0:01:48.6]} 23. Qxc4 {[%clk 0:01:22.4]} 23... dxe3 {[%clk
0:01:47.1]} 24. fxe3 {[%clk 0:01:07.8]} 24... Nxg3 {[%clk 0:01:26.1]} 25. hxg3
{[%clk 0:01:08.7]} 25... Bb5 {[%clk 0:01:10.6]} 26. Qd4 {[%clk 0:01:01.1]} 26...
Ne7 {[%clk 0:00:49.8]} 27. Qxb6 {[%clk 0:00:47.7]} 27... axb6 {[%clk 0:00:50.7]}
28. Be4 {[%clk 0:00:47.7]} 28... g6 {[%clk 0:00:40.6]} 29. g4 {[%clk 0:00:43.6]}
29... Ra8 {[%clk 0:00:39.2]} 30. Rc7 {[%clk 0:00:40.9]} 30... Nc6 {[%clk
0:00:33.1]} 31. Bxc6 {[%clk 0:00:40.4]} 31... Bxc6 {[%clk 0:00:32.1]} 32. Rf1
{[%clk 0:00:41.1]} 32... Rxa3 {[%clk 0:00:24.2]} 33. Rf8# {[%clk 0:00:40.5]} 1-0

[Event "Late-Titled-Tuesday-Blitz-March-12-2024"]
[Site "Chess.com"]
[Date "2024.03.12"]
[Round "2"]
[White "lluiss"]
[Black "maksimys18"]
[Result "0-1"]
[WhiteElo "2240"]
[BlackElo "2525"]
[TimeControl "180+1"]
[EndTime "14:16:21 PDT"]
[Termination "maksimys18 won on time"]

1. e4 {[%clk 0:03:00.9]} 1... e6 {[%clk 0:03:00.9]} 2. d4 {[%clk 0:03:00.1]}
2... d5 {[%clk 0:03:00.8]} 3. e5 {[%clk 0:03:00.6]} 3... c5 {[%clk 0:03:00.3]}
4. dxc5 {[%clk 0:03:00.7]} 4... Bxc5 {[%clk 0:02:59.9]} 5. Nf3 {[%clk
0:03:00.9]} 5... Nc6 {[%clk 0:02:57.7]} 6. Bd3 {[%clk 0:03:00.7]} 6... Nge7
{[%clk 0:02:57.3]} 7. O-O {[%clk 0:02:57.9]} 7... Ng6 {[%clk 0:02:57.3]} 8. Qe2
{[%clk 0:02:57.6]} 8... O-O {[%clk 0:02:56.3]} 9. c3 {[%clk 0:02:55.2]} 9... f6
{[%clk 0:02:55.2]} 10. exf6 {[%clk 0:02:52.7]} 10... Qxf6 {[%clk 0:02:56.1]} 11.
Bg5 {[%clk 0:02:33.1]} 11... Qf7 {[%clk 0:02:54.7]} 12. Nbd2 {[%clk 0:02:20.1]}
12... e5 {[%clk 0:02:48.1]} 13. Nb3 {[%clk 0:01:48.1]} 13... Bd6 {[%clk
0:02:46]} 14. Bxg6 {[%clk 0:01:45.1]} 14... Qxg6 {[%clk 0:02:45.1]} 15. Qd2
{[%clk 0:01:25.2]} 15... Be6 {[%clk 0:02:38.6]} 16. Be3 {[%clk 0:01:19.9]} 16...
e4 {[%clk 0:02:34.8]} 17. Nfd4 {[%clk 0:01:08.7]} 17... Bh3 {[%clk 0:02:32.4]}
18. f3 {[%clk 0:01:08.8]} 18... Ne5 {[%clk 0:02:21.4]} 19. fxe4 {[%clk
0:00:59.5]} 19... dxe4 {[%clk 0:02:20.9]} 20. Nb5 {[%clk 0:00:54.3]} 20... Nf3+
{[%clk 0:01:53.1]} 21. Rxf3 {[%clk 0:00:45.3]} 21... exf3 {[%clk 0:01:52.8]} 22.
Nxd6 {[%clk 0:00:35.5]} 22... Bxg2 {[%clk 0:01:52.4]} 23. Kf2 {[%clk 0:00:12.7]}
23... Rad8 {[%clk 0:01:51.8]} 24. Bf4 {[%clk 0:00:12.1]} 24... Rfe8 {[%clk
0:01:42.1]} 25. Re1 {[%clk 0:00:09.4]} 25... Rxe1 {[%clk 0:01:41.2]} 26. Qxe1
{[%clk 0:00:09.4]} 26... h6 {[%clk 0:01:27.7]} 27. Bg3 {[%clk 0:00:09.2]} 27...
Bh3 {[%clk 0:01:16.1]} 28. Qe4 {[%clk 0:00:08.1]} 28... Rxd6 {[%clk 0:01:12.5]}
29. Qxg6 {[%clk 0:00:05.7]} 29... Rxg6 {[%clk 0:01:12.4]} 30. Kxf3 {[%clk
0:00:06.6]} 30... Rf6+ {[%clk 0:01:11.2]} 31. Ke2 {[%clk 0:00:05.5]} 31... Bg4+
{[%clk 0:01:11.1]} 32. Kd2 {[%clk 0:00:03.5]} 32... b6 {[%clk 0:01:09.5]} 33.
Nd4 {[%clk 0:00:03.6]} 33... Rf1 {[%clk 0:01:07.2]} 34. Nb5 {[%clk 0:00:03]}
34... a6 {[%clk 0:01:05.7]} 35. Nd4 {[%clk 0:00:01.3]} 35... b5 {[%clk
0:01:05.2]} 0-1